bitfinex/quotes_ETHUSD_20230102
["timestamp","ask_amount","ask_price","bid_price","bid_amount"]
[1672642090730,7.43465369,1202.8,1202.7,16.79763433]
[1672642091551,12.43465369,1202.8,1202.7,16.79763433]
[1672642095685,12.43465369,1202.8,1202.7,16.79482242]
[1672642097376,7.43465369,1202.8,1202.7,16.79482242]
[1672642098480,12.43465369,1202.8,1202.7,16.79482242]
[1672642104492,7.43465369,1202.8,1202.7,16.79482242]
[1672642105602,12.43465369,1202.8,1202.7,16.79482242]
[1672642111637,5.22709774,1202.8,1202.7,16.79482242]
[1672642114171,12.4358959,1202.8,1202.7,16.79482242]
[1672642114617,5.22709774,1202.8,1202.7,16.79482242]
[1672642116625,5.22471912,1202.8,1202.7,16.79482242]
[1672642117621,0.22471912,1202.8,1202.7,16.79482242]
[1672642118690,5.22471912,1202.8,1202.7,16.79482242]
[1672642124736,0.22471912,1202.8,1202.7,16.79482242]
[1672642125046,7.43191922,1202.8,1202.7,16.79482242]
[1672642125752,12.43191922,1202.8,1202.7,16.79482242]
[1672642126208,5.22471912,1202.8,1202.7,16.79482242]
[1672642126576,12.4321966,1202.8,1202.7,16.79482242]
[1672642126910,5.22471912,1202.8,1202.7,16.79482242]
[1672642131711,0.22471912,1202.8,1202.7,16.79482242]
[1672642132722,5.22471912,1202.8,1202.7,16.79482242]
[1672642138501,5.22471912,1202.8,1202.7,16.79255362]
[1672642138684,0.22471912,1202.8,1202.7,16.79255362]
[1672642139630,5.22471912,1202.8,1202.7,16.79255362]
[1672642145708,0.22471912,1202.8,1202.7,16.79255362]
[1672642146737,5.22471912,1202.8,1202.7,16.79255362]
[1672642155594,0.22471912,1202.8,1202.7,16.79255362]
[1672642156469,5.22471912,1202.8,1202.7,16.79255362]
[1672642157751,12.43469977,1202.8,1202.7,22.96718228]
[1672642157961,12.43469977,1202.8,1202.7,16.79255362]
[1672642158115,5.22471912,1202.8,1202.7,16.79255362]
[1672642162595,0.22471912,1202.8,1202.7,16.78940647]
[1672642163491,5.22471912,1202.8,1202.7,16.78940647]
[1672642169524,0.22471912,1202.8,1202.7,16.78940647]
[1672642169884,16.54834778,1202.8,1202.7,9.55827971]
[1672642170099,23.61834778,1202.8,1202.7,0.82327971]
[1672642170635,17.44371912,1202.8,1202.7,0.82327971]
[1672642175632,22.42371912,1202.8,1202.7,0.82327971]
[1672642176012,28.59775323,1202.8,1202.7,0.82327971]
[1672642176223,22.42371912,1202.8,1202.7,0.82327971]
[1672642177648,17.42371912,1202.8,1202.7,0.82327971]
[1672642177852,22.42371912,1202.8,1202.7,0.82327971]
[1672642178010,28.59715869,1202.8,1202.7,0.82327971]
[1672642178215,26.52715869,1202.8,1202.7,0.82327971]
[1672642180276,26.52715869,1202.8,1202.7,0.72427971]
[1672642180741,20.35371912,1202.8,1202.7,0.72427971]
[1672642181268,26.5271586,1202.8,1202.7,0.72427971]
[1672642181744,20.35371912,1202.8,1202.7,0.72427971]
[1672642185598,20.35371912,1202.8,1202.7,0.72193794]
[1672642192168,15.35371912,1202.8,1202.7,0.72193794]
[1672642193047,20.35371912,1202.8,1202.7,0.72193794]
[1672642194892,10.20471912,1202.8,1202.7,0.72193794]
[1672642198747,17.4072614,1202.8,1202.7,0.72193794]
[1672642200246,10.20471912,1202.8,1202.7,0.72193794]
[1672642200464,17.40784527,1202.8,1202.7,0.72193794]
[1672642202886,10.20471912,1202.8,1202.7,0.72193794]
[1672642205737,17.40763985,1202.8,1202.7,0.72193794]
[1672642206560,10.20471912,1202.8,1202.7,0.72193794]
[1672642208670,10.20471912,1202.8,1202.7,0.7196238]
[1672642209323,17.40890628,1202.8,1202.7,0.7196238]
[1672642215070,23.582347,1202.8,1202.7,0.7196238]
[1672642215431,10.20471912,1202.8,1202.7,0.7196238]
[1672642215856,5.20471912,1202.8,1202.7,0.7196238]
[1672642216031,12.40540687,1202.8,1202.7,0.7196238]
[1672642216893,5.20471912,1202.8,1202.7,0.7196238]
[1672642217225,10.20471912,1202.8,1202.7,0.7196238]
[1672642222980,5.20471912,1202.8,1202.7,0.7196238]
[1672642224693,10.20471912,1202.8,1202.7,0.7196238]
[1672642225259,17.40560996,1202.8,1202.7,0.7196238]
[1672642227352,10.20471912,1202.8,1202.7,0.7196238]
[1672642228782,5.22471912,1202.8,1202.7,0.7196238]
[1672642230380,5.22471912,1202.8,1202.7,15.62925246]
[1672642230594,5.22471912,1202.8,1202.7,17.65207771]
[1672642232530,5.22471912,1202.8,1202.7,19.73220747]
[1672642232905,5.22471912,1202.8,1202.7,20.35680747]
[1672642233488,7.20089084,1203.1,1202.7,20.35680747]
[1672642233697,7.26089084,1203.2,1203.0,10.819]
[1672642233907,7.26089084,1203.2,1203.1,13.235]
[1672642235632,12.26089084,1203.2,1203.1,13.235]
[1672642236521,12.49089084,1203.2,1203.1,13.235]
[1672642240316,12.43089084,1203.2,1203.1,13.334]
[1672642242099,5.23,1203.2,1203.1,13.334]
[1672642242308,5.23,1203.2,1203.1,14.77559]
[1672642243509,5.23,1203.2,1203.1,10.27559]
[1672642243684,12.43089084,1203.2,1203.1,10.27559]
[1672642244103,5.23,1203.2,1203.1,10.27559]
[1672642244667,12.43089084,1203.2,1203.1,10.27559]
[1672642250995,5.23,1203.2,1203.1,10.27559]
[1672642251675,0.23,1203.2,1203.1,10.27559]
[1672642252356,5.23,1203.2,1203.1,10.27559]
[1672642256239,5.23,1203.2,1203.1,10.27219661]
[1672642258428,0.23,1203.2,1203.1,10.27219661]
[1672642259350,5.23,1203.2,1203.1,10.27219661]
[1672642260092,12.43089084,1203.2,1203.1,10.27219661]
[1672642265247,7.43089084,1203.2,1203.1,10.27219661]
[1672642268024,12.43089084,1203.2,1203.1,10.27219661]
[1672642268495,5.23,1203.2,1203.1,10.27219661]
[1672642274042,0.23,1203.2,1203.1,10.27219661]
[1672642274702,5.23,1203.2,1203.1,10.27219661]
[1672642277329,5.23,1203.2,1203.1,8.82802261]
[1672642277539,5.23,1203.2,1203.1,7.82802261]
[1672642280594,0.23,1203.2,1203.1,7.82802261]
[1672642281689,5.23,1203.2,1203.1,7.82802261]
[1672642287742,0.23,1203.2,1203.1,7.82802261]
[1672642288686,5.23,1203.2,1203.1,7.82802261]
[1672642294826,0.23,1203.2,1203.1,7.82802261]
[1672642295755,5.23,1203.2,1203.1,7.82802261]
[1672642296242,5.22692253,1203.2,1203.1,7.82802261]
[1672642296459,5.22692253,1203.2,1203.1,9.18880688]
[1672642301705,0.22692253,1203.2,1203.1,9.18880688]
[1672642302774,5.22692253,1203.2,1203.1,9.18880688]
[1672642304082,12.43461167,1203.2,1203.1,9.18880688]
[1672642312515,7.43461167,1203.2,1203.1,9.18880688]
[1672642313561,12.43461167,1203.2,1203.1,9.18880688]
[1672642317078,12.43461167,1203.2,1203.1,9.18640716]
[1672642319540,7.43461167,1203.2,1203.1,9.18640716]
[1672642320662,12.43461167,1203.2,1203.1,9.18640716]
[1672642324483,12.43461167,1203.2,1203.1,7.82562289]
[1672642325828,5.22692253,1203.2,1203.1,7.82562289]
[1672642326796,12.43461167,1203.2,1203.1,7.82562289]
[1672642336501,7.43461167,1203.2,1203.1,7.82562289]
[1672642336659,12.43461167,1203.2,1203.1,7.82562289]
[1672642336862,12.43461167,1203.2,1203.1,9.79353745]
[1672642339199,12.43461167,1203.2,1203.1,9.79059701]
[1672642339501,5.22692253,1203.2,1203.1,7.82268245]
[1672642340592,5.22692253,1203.2,1203.1,0.099]
[1672642340765,17.20692253,1203.2,1203.1,0.099]
[1672642352158,42.12395487,1203.2,1203.1,0.099]
[1672642353103,42.12395487,1203.2,1202.8,13.9585]
[1672642353320,14.19543659,1202.9,1202.8,13.9585]
[1672642353470,14.42543659,1202.9,1202.8,16.44134788]
[1672642354378,12.23,1202.9,1202.8,16.44134788]
[1672642357494,12.23,1202.9,1202.8,15.81684788]
[1672642360722,12.23,1202.9,1202.8,15.81464274]
[1672642365010,7.23,1202.9,1202.8,15.81464274]
[1672642365909,12.23,1202.9,1202.8,15.81464274]
[1672642372356,7.23,1202.9,1202.8,15.81464274]
[1672642373069,12.23,1202.9,1202.8,15.81464274]
[1672642379100,7.23,1202.9,1202.8,15.81464274]
[1672642380093,12.23,1202.9,1202.8,15.81464274]
[1672642384235,12.23,1202.9,1202.8,15.8112615]
[1672642385968,7.23,1202.9,1202.8,15.8112615]
[1672642386532,12.23,1202.9,1202.8,15.8112615]
[1672642387844,19.42543659,1202.9,1202.8,15.8112615]
[1672642393230,19.42543659,1202.9,1202.8,13.32841362]
[1672642395268,14.42543659,1202.9,1202.8,13.32841362]
[1672642395690,19.42543659,1202.9,1202.8,13.32841362]
[1672642401862,14.42543659,1202.9,1202.8,13.32841362]
[1672642402762,19.42543659,1202.9,1202.8,13.32841362]
[1672642404543,19.42543659,1202.9,1202.8,13.32622943]
[1672642408433,19.42543659,1202.9,1202.8,8.834]
[1672642408862,14.42543659,1202.9,1202.8,8.834]
[1672642409716,19.42543659,1202.9,1202.8,8.834]
[1672642414482,12.42543659,1202.9,1202.8,8.834]
[1672642414692,12.42543659,1202.9,1202.8,11.05211536]
[1672642415375,19.42543659,1202.9,1202.8,11.05211536]
[1672642415898,14.42543659,1202.9,1202.8,11.05211536]
[1672642416319,19.40543659,1202.9,1202.8,8.834]
[1672642416523,17.21,1202.9,1202.8,0.099]
[1672642427833,12.21,1202.9,1202.8,0.099]
[1672642429081,12.21,1202.9,1202.7,0.71575356]
[1672642429295,17.40859883,1202.8,1202.7,0.71575356]
[1672642435281,12.40859883,1202.8,1202.7,0.71575356]
[1672642435712,17.40859883,1202.8,1202.7,0.71245358]
[1672642441759,12.40859883,1202.8,1202.7,0.71245358]
[1672642442702,17.40859883,1202.8,1202.7,0.71245358]
[1672642448839,12.40859883,1202.8,1202.7,0.71245358]
[1672642449767,17.40859883,1202.8,1202.7,0.71245358]
[1672642455715,12.40859883,1202.8,1202.7,0.71245358]
[1672642456837,17.40859883,1202.8,1202.7,0.71245358]
[1672642459871,17.40859883,1202.8,1202.7,0.70898729]
[1672642462820,12.40859883,1202.8,1202.7,0.70898729]
[1672642463768,17.40859883,1202.8,1202.7,0.70898729]
[1672642464197,12.42859883,1202.8,1202.7,15.31998729]
[1672642464527,12.42859883,1202.8,1202.7,17.74392459]
[1672642465140,5.23,1202.8,1202.7,17.74392459]
[1672642471679,5.22663394,1202.8,1202.7,17.74392459]
[1672642472109,5.23282472,1202.8,1202.7,17.74392459]
[1672642474609,0.23282472,1202.8,1202.7,17.74392459]
[1672642475404,5.23282472,1202.8,1202.7,17.74392459]
[1672642481440,0.23282472,1202.8,1202.7,17.74392459]
[1672642482224,0.23282472,1202.8,1202.7,17.84292459]
[1672642482488,5.23282472,1202.8,1202.7,17.84292459]
[1672642483799,5.22663394,1202.8,1202.7,24.00090707]
[1672642484017,5.22663394,1202.8,1202.7,26.08490707]
[1672642484297,5.22663394,1202.8,1202.7,20.55142459]
[1672642487328,5.22663394,1202.8,1202.7,19.92692459]
[1672642490647,5.0,1202.8,1202.7,19.92692459]
[1672642493926,5.23,1202.8,1202.7,17.84292459]
[1672642494686,5.23,1202.8,1202.7,17.83993476]
[1672642499685,5.23,1202.8,1202.7,18.46453476]
[1672642507273,0.23,1202.8,1202.7,18.46453476]
[1672642508198,5.23,1202.8,1202.7,18.46453476]
[1672642511307,5.23,1202.8,1202.7,26.70651724]
[1672642511473,11.17263515,1202.8,1202.7,20.54853476]
[1672642511673,11.17266268,1202.8,1202.7,20.54853476]
[1672642512302,11.17285717,1202.8,1202.7,20.54853476]
[1672642512511,11.17191159,1202.8,1202.7,20.54853476]
[1672642518085,11.17191159,1202.8,1202.7,20.54513733]
[1672642519258,11.17191159,1202.8,1202.7,18.46113733]
[1672642519405,6.17191159,1202.8,1202.7,18.46113733]
[1672642520341,11.17191159,1202.8,1202.7,18.46113733]
[1672642524871,11.17191159,1202.8,1202.7,17.83653733]
[1672642525294,6.17191159,1202.8,1202.7,17.83653733]
[1672642525859,7.066,1202.9,1202.7,17.83653733]
[1672642526294,7.066,1202.9,1202.8,13.235]
[1672642526447,7.296,1202.9,1202.8,14.88105373]
[1672642527555,12.296,1202.9,1202.8,14.88105373]
[1672642527743,12.296,1202.9,1202.8,13.235]
[1672642529021,12.29311333,1202.9,1202.8,13.235]
[1672642529241,5.296,1202.9,1202.8,13.235]
[1672642533432,12.49459883,1202.9,1202.8,13.235]
[1672642535031,5.296,1202.9,1202.8,13.235]
[1672642535330,5.296,1202.9,1202.8,15.49643234]
[1672642539481,5.23,1202.9,1202.8,15.59543234]
[1672642542171,5.0,1202.9,1202.8,15.59543234]
[1672642546471,5.0,1202.9,1202.8,16.15035947]
[1672642548471,14.27078961,1203.0,1202.8,16.15035947]
[1672642549472,5.0,1202.9,1202.8,16.15035947]
[1672642549883,5.23,1202.9,1202.8,16.15035947]
[1672642553195,5.23,1202.9,1202.8,16.14817124]
[1672642556882,0.23,1202.9,1202.8,16.14817124]
[1672642557973,5.23,1202.9,1202.8,16.14817124]
[1672642561814,5.0,1202.9,1202.8,22.92642323]
[1672642562041,11.17182862,1202.9,1202.8,22.92642323]
[1672642562256,5.0,1202.9,1202.8,22.92642323]
[1672642562464,11.17207079,1202.9,1202.8,22.92642323]
[1672642562658,5.0,1202.9,1202.8,16.77267124]
[1672642563225,11.17034803,1202.9,1202.8,16.77267124]
[1672642565082,11.17034803,1202.9,1202.8,22.92884427]
[1672642565293,11.17034803,1202.9,1202.8,16.77267124]
[1672642575208,11.17034803,1202.9,1202.8,18.85667124]
[1672642575369,6.17034803,1202.9,1202.8,18.85667124]
[1672642575821,6.17034803,1202.9,1202.8,18.85448933]
[1672642576265,11.17034803,1202.9,1202.8,18.85448933]
[1672642579309,11.17034803,1202.9,1202.8,16.77048933]
[1672642582246,6.17034803,1202.9,1202.8,16.77048933]
[1672642583349,11.17034803,1202.9,1202.8,16.77048933]
[1672642589289,6.17034803,1202.9,1202.8,16.77048933]
[1672642590338,11.17034803,1202.9,1202.8,16.77048933]
[1672642596414,6.17034803,1202.9,1202.8,16.77048933]
[1672642596832,6.17034803,1202.9,1202.8,16.76724327]
[1672642597289,11.17034803,1202.9,1202.8,16.76724327]
[1672642598618,5.0,1202.9,1202.8,16.76724327]
[1672642603462,7.066,1203.0,1202.8,16.76724327]
[1672642604296,5.0,1202.9,1202.8,16.76724327]
[1672642610298,7.066,1203.0,1202.8,16.76724327]
[1672642611250,5.0,1202.9,1202.8,16.76724327]
[1672642616909,5.0,1202.9,1202.8,16.76354493]
[1672642617322,7.066,1203.0,1202.8,16.76354493]
[1672642618788,5.0,1202.9,1202.8,16.76354493]
[1672642624825,7.066,1203.0,1202.8,16.76354493]
[1672642625237,5.0,1202.9,1202.8,16.76354493]
[1672642628198,5.19716604,1202.9,1202.8,16.76354493]
[1672642634859,0.19716604,1202.9,1202.8,16.76354493]
[1672642635238,5.19716604,1202.9,1202.8,16.76354493]
[1672642637160,11.37354034,1202.9,1202.8,16.76354493]
[1672642637338,5.19716604,1202.9,1202.8,16.76354493]
[1672642640574,5.19716604,1202.9,1202.8,16.76003036]
[1672642641304,0.19716604,1202.9,1202.8,16.76003036]
[1672642642254,5.19716604,1202.9,1202.8,16.76003036]
[1672642643616,11.37328633,1202.9,1202.8,16.76003036]
[1672642648405,6.37328633,1202.9,1202.8,16.76003036]
[1672642649235,11.37328633,1202.9,1202.8,16.76003036]
[1672642651926,11.37328633,1202.9,1202.8,19.76003036]
[1672642652503,11.37328633,1202.9,1202.8,23.9088915]
[1672642652733,5.19716604,1202.9,1202.8,32.14987398]
[1672642652973,10.34295456,1202.9,1202.8,32.14987398]
[1672642653132,10.34295456,1202.9,1202.8,30.06687398]
[1672642654393,10.34295456,1202.9,1202.8,23.9088915]
[1672642654919,10.53019829,1202.9,1202.8,23.9088915]
[1672642656404,10.53019829,1202.9,1202.8,30.06687398]
[1672642656614,10.53019829,1202.9,1202.8,23.9088915]
[1672642660974,5.53019829,1202.9,1202.8,23.9088915]
[1672642661854,5.53019829,1202.9,1202.8,23.90569373]
[1672642662179,10.53019829,1202.9,1202.8,23.90569373]
[1672642665015,11.56053006,1202.9,1202.8,23.90569373]
[1672642665892,11.55697552,1202.9,1202.8,23.90569373]
[1672642671086,6.55697552,1202.9,1202.8,23.90569373]
[1672642672116,11.55697552,1202.9,1202.8,23.90569373]
[1672642680452,11.55697552,1202.9,1202.8,19.75683259]
[1672642687550,11.55697552,1202.9,1202.8,19.75400358]
[1672642688860,6.55697552,1202.9,1202.8,19.75400358]
[1672642689319,11.55697552,1202.9,1202.8,19.75400358]
[1672642695433,6.55697552,1202.9,1202.8,19.75400358]
[1672642696375,11.55697552,1202.9,1202.8,19.75400358]
[1672642697691,10.52091735,1202.9,1202.8,19.75400358]
[1672642700958,8.85519124,1202.9,1202.8,30.0608472]
[1672642701169,4.35172309,1202.9,1202.8,34.46523102]
[1672642710103,4.35172309,1202.9,1202.8,34.45222338]
[1672642710269,4.35172309,1202.9,1202.8,28.30724854]
[1672642710484,4.35172309,1202.9,1202.8,26.23724854]
[1672642710485,5.14006212,1202.9,1202.8,26.23724854]
[1672642711941,4.34946227,1202.9,1202.8,26.23724854]
[1672642712263,5.20606212,1203.0,1202.8,26.23724854]
[1672642712479,5.20606212,1203.0,1202.9,15.88386114]
[1672642712691,5.20606212,1203.0,1202.9,18.80758599]
[1672642712692,5.066,1203.0,1202.9,18.80758599]
[1672642713053,5.066,1203.0,1202.9,19.36251312]
[1672642713698,10.20515774,1203.0,1202.9,19.36251312]
[1672642715626,10.13915774,1203.0,1202.9,19.46151312]
[1672642716804,5.13915774,1203.0,1202.9,19.46151312]
[1672642717841,10.13915774,1203.0,1202.9,19.46151312]
[1672642721775,10.13915774,1203.0,1202.9,19.45852735]
[1672642723878,5.13915774,1203.0,1202.9,19.45852735]
[1672642724874,10.13915774,1203.0,1202.9,19.45852735]
[1672642729620,10.13915774,1203.0,1202.9,20.08292735]
[1672642730949,5.13915774,1203.0,1202.9,20.08292735]
[1672642731788,10.13915774,1203.0,1202.9,20.08292735]
[1672642736659,10.13915774,1203.0,1202.9,19.45852735]
[1672642737766,5.13915774,1203.0,1202.9,19.45852735]
[1672642738877,10.13915774,1203.0,1202.9,19.45852735]
[1672642739241,5.13915774,1203.0,1202.9,19.45852735]
[1672642741142,10.13915774,1203.0,1202.9,19.45852735]
[1672642744867,5.13915774,1203.0,1202.9,19.45852735]
[1672642745977,10.13915774,1203.0,1202.9,19.45852735]
[1672642746192,5.0,1203.0,1202.9,19.45852735]
[1672642746812,5.0,1203.0,1202.9,19.45616101]
[1672642748279,10.1462472,1203.0,1202.9,19.45616101]
[1672642752133,5.1462472,1203.0,1202.9,19.45616101]
[1672642752862,10.1462472,1203.0,1202.9,19.45616101]
[1672642754387,5.0,1203.0,1202.9,19.45616101]
[1672642756681,10.14962487,1203.0,1202.9,19.45616101]
[1672642757991,5.14962487,1203.0,1202.9,19.45616101]
[1672642759839,5.14962487,1203.0,1202.9,25.60113585]
[1672642760051,5.14962487,1203.0,1202.9,25.85351967]
[1672642761082,6.01562487,1203.1,1203.0,4.5]
[1672642761255,5.866,1203.1,1203.0,23.41921311]
[1672642761996,12.04212029,1203.1,1203.0,23.41921311]
[1672642762408,5.866,1203.1,1203.0,23.41921311]
[1672642762618,12.04212029,1203.1,1203.0,23.41921311]
[1672642766603,7.04212029,1203.1,1203.0,23.41921311]
[1672642766929,7.04212029,1203.1,1203.0,23.43618061]
[1672642767492,12.04212029,1203.1,1203.0,23.43618061]
[1672642768294,12.04212029,1203.1,1203.0,23.43328222]
[1672642770574,11.01535846,1203.1,1203.0,23.43328222]
[1672642772756,5.866,1203.1,1203.0,23.43328222]
[1672642773366,7.04212029,1203.1,1203.0,23.43328222]
[1672642774193,6.24212029,1203.1,1203.0,6.71406911]
[1672642774405,11.24212029,1203.1,1203.0,6.69710161]
[1672642775669,11.17612029,1203.1,1203.0,6.79610161]
[1672642782025,6.17612029,1203.1,1203.0,6.79610161]
[1672642783080,11.17612029,1203.1,1203.0,6.79610161]
[1672642787401,11.17612029,1203.1,1203.0,9.37174764]
[1672642788968,6.17612029,1203.1,1203.0,9.37174764]
[1672642789563,11.17612029,1203.1,1203.0,9.37174764]
[1672642792226,2.148,1203.2,1203.1,5.99608071]
[1672642792438,2.378,1203.2,1203.1,5.99608071]
[1672642794356,7.378,1203.2,1203.1,5.99608071]
[1672642795150,5.296,1203.2,1203.1,5.99608071]
[1672642795616,5.236,1203.2,1203.1,6.08608071]
[1672642795840,5.23,1203.2,1203.1,6.09508071]
[1672642798619,0.23,1203.2,1203.1,6.09508071]
[1672642799554,5.23,1203.2,1203.1,6.09508071]
[1672642805570,0.23,1203.2,1203.1,6.09508071]
[1672642805782,0.23,1203.2,1203.1,7.63186355]
[1672642806603,5.23,1203.2,1203.1,7.63186355]
[1672642812599,0.23,1203.2,1203.1,7.63186355]
[1672642812812,13.52921361,1203.2,1203.1,1.59508071]
[1672642813019,19.573,1203.2,1203.1,1.59508071]
[1672642813245,25.52794135,1203.2,1203.1,1.59508071]
[1672642813463,19.56928356,1203.2,1203.1,1.59508071]
[1672642815705,19.56928356,1203.2,1203.1,1.49608071]
[1672642821572,14.56928356,1203.2,1203.1,1.49608071]
[1672642822368,19.56928356,1203.2,1203.1,1.49608071]
[1672642825255,17.48728356,1203.2,1203.1,1.49608071]
[1672642828309,17.49128356,1203.2,1203.1,1.49608071]
[1672642828481,12.49128356,1203.2,1203.1,1.49608071]
[1672642829783,17.49128356,1203.2,1203.1,1.49608071]
[1672642832149,7.067,1203.2,1203.1,1.49608071]
[1672642833614,5.0,1203.2,1203.1,1.49608071]
[1672642834598,5.23,1203.2,1203.1,1.49608071]
[1672642835543,0.23,1203.2,1203.1,1.49608071]
[1672642836431,5.23,1203.2,1203.1,1.49608071]
[1672642842438,0.23,1203.2,1203.1,1.49608071]
[1672642843717,13.15419078,1203.3,1203.1,7.02363992]
[1672642843908,6.17710428,1203.2,1203.1,9.10563992]
[1672642844099,6.17710428,1203.2,1203.1,18.26438316]
[1672642844310,11.17710428,1203.2,1203.1,18.26438316]
[1672642844525,10.14559481,1203.2,1203.1,14.22496167]
[1672642844782,11.17710428,1203.2,1203.1,14.22496167]
[1672642845168,5.0,1203.2,1203.1,12.10563992]
[1672642845375,4.95839,1203.2,1203.1,14.22876299]
[1672642846314,4.95839,1203.2,1203.1,12.10563992]
[1672642846679,10.10255442,1203.2,1203.1,12.10563992]
[1672642847039,10.10255442,1203.2,1203.1,14.24240238]
[1672642848355,10.10255442,1203.2,1203.1,12.12099874]
[1672642850723,10.10255442,1203.2,1203.1,12.17702874]
[1672642852266,10.10255442,1203.2,1203.1,14.39655796]
[1672642852749,5.14416442,1203.2,1203.1,12.27602874]
[1672642853748,10.14416442,1203.2,1203.1,14.39557463]
[1672642853966,10.14416442,1203.2,1203.1,12.27602874]
[1672642856322,11.17710428,1203.2,1203.1,5.97377878]
[1672642856971,10.14022333,1203.2,1203.1,5.97377878]
[1672642857367,10.14022333,1203.2,1203.1,10.12263992]
[1672642861683,10.14022333,1203.2,1203.1,10.47243992]
[1672642864903,5.14022333,1203.2,1203.1,10.47243992]
[1672642865424,10.14022333,1203.2,1203.1,10.47243992]
[1672642866889,10.14022333,1203.2,1203.1,10.469884]
[1672642869830,10.14022333,1203.2,1203.1,10.120084]
[1672642871345,5.14022333,1203.2,1203.1,10.120084]
[1672642872484,10.14022333,1203.2,1203.1,10.120084]
[1672642878349,5.14022333,1203.2,1203.1,10.120084]
[1672642879508,10.14022333,1203.2,1203.1,10.120084]
[1672642880364,5.0,1203.2,1203.1,10.120084]
[1672642880871,11.17710428,1203.2,1203.1,10.120084]
[1672642885501,6.17710428,1203.2,1203.1,10.120084]
[1672642886285,11.17710428,1203.2,1203.1,10.120084]
[1672642888757,11.17710428,1203.2,1203.1,10.1162081]
[1672642892015,5.0,1203.2,1203.1,10.1162081]
[1672642897066,5.0,1203.2,1203.1,1.58864889]
[1672642903473,11.17751235,1203.2,1203.1,1.58864889]
[1672642908784,11.17751235,1203.2,1203.1,1.49564889]
[1672642908936,11.17751235,1203.2,1203.1,1.48964889]
[1672642910045,11.17751235,1203.2,1203.1,1.4856548]
[1672642912162,6.17751235,1203.2,1203.1,1.4856548]
[1672642913272,11.17751235,1203.2,1203.1,1.4856548]
[1672642914518,5.0,1203.2,1203.1,1.4856548]
[1672642914898,11.1778574,1203.2,1203.1,1.4856548]
[1672642919261,6.1778574,1203.2,1203.1,1.4856548]
[1672642920094,11.1778574,1203.2,1203.1,1.4856548]
[1672642926098,6.1778574,1203.2,1203.1,1.4856548]
[1672642927210,11.1778574,1203.2,1203.1,1.4856548]
[1672642931305,5.0,1203.2,1203.1,1.4856548]
[1672642932040,5.0,1203.2,1203.1,12.86801678]
[1672642932355,5.0,1203.2,1203.1,6.70927354]
[1672642932356,11.17881781,1203.2,1203.1,6.70927354]
[1672642933190,11.17881781,1203.2,1203.1,6.70639941]
[1672642938371,6.17881781,1203.2,1203.1,6.70639941]
[1672642939380,11.17881781,1203.2,1203.1,6.70639941]
[1672642940993,5.0,1203.2,1203.1,6.70639941]
[1672642941198,11.17881781,1203.2,1203.1,6.70639941]
[1672642945441,6.17881781,1203.2,1203.1,6.80539941]
[1672642946390,11.17881781,1203.2,1203.1,6.80539941]
[1672642948262,5.0,1203.2,1203.1,9.80539941]
[1672642948895,11.17881781,1203.2,1203.1,9.80539941]
[1672642949047,5.0,1203.2,1203.1,9.80539941]
[1672642949411,10.14933708,1203.2,1203.1,9.80539941]
[1672642955917,10.14933708,1203.2,1203.1,9.80269525]
[1672642956966,5.14933708,1203.2,1203.1,9.80269525]
[1672642957859,10.14933708,1203.2,1203.1,9.80269525]
[1672642963874,5.14933708,1203.2,1203.1,9.80269525]
[1672642964967,10.14933708,1203.2,1203.1,9.80269525]
[1672642965187,5.0,1203.2,1203.1,9.80269525]
[1672642966240,10.14907911,1203.2,1203.1,9.80269525]
[1672642969180,5.0,1203.2,1203.1,9.80269525]
[1672642970967,6.25100859,1203.3,1203.1,9.80269525]
[1672642971175,6.25100859,1203.3,1203.2,4.14886114]
[1672642971803,6.24900859,1203.3,1203.2,4.14886114]
[1672642972033,11.18500859,1203.3,1203.2,4.14886114]
[1672642972612,5.00619078,1203.3,1203.2,4.14886114]
[1672642975857,11.18786963,1203.3,1203.2,11.90374823]
[1672642976113,11.18786963,1203.3,1203.2,5.84400499]
[1672642976578,11.18786963,1203.3,1203.2,10.34400499]
[1672642978062,11.18786963,1203.3,1203.2,10.34191756]
[1672642980743,11.18786963,1203.3,1203.2,10.35832434]
[1672642982336,6.18786963,1203.3,1203.2,10.35832434]
[1672642982538,11.18786963,1203.3,1203.2,10.35832434]
[1672642987268,5.00619078,1203.3,1203.2,10.35832434]
[1672642987437,11.18786963,1203.3,1203.2,10.35832434]
[1672642989411,5.00619078,1203.3,1203.2,10.35832434]
[1672642989780,10.15662862,1203.3,1203.2,19.51706758]
[1672642989944,10.15662862,1203.3,1203.2,20.14136758]
[1672642990940,10.15662862,1203.3,1203.2,13.98262434]
[1672642991272,10.15662862,1203.3,1203.2,20.14136758]
[1672642991422,10.15662862,1203.3,1203.2,13.98262434]
[1672642995990,9.02885023,1203.3,1203.2,28.87636758]
[1672642996203,8.23704772,1203.3,1203.2,31.2107514]
[1672642996783,9.02885023,1203.3,1203.2,31.2107514]
[1672642996986,8.23701979,1203.3,1203.2,31.2107514]
[1672642997196,4.3586074,1203.3,1203.2,31.2107514]
[1672643003560,4.3586074,1203.3,1203.2,31.19122242]
[1672643003941,4.3586074,1203.3,1203.2,42.71681482]
[1672643007051,4.3586074,1203.3,1203.2,31.19122242]
[1672643008024,4.3586074,1203.3,1203.2,29.10922242]
[1672643008477,4.3586074,1203.3,1203.2,22.97000816]
[1672643008661,4.3586074,1203.3,1203.2,13.34191756]
[1672643008662,5.15043784,1203.3,1203.2,13.34191756]
[1672643009067,10.15043784,1203.3,1203.2,13.34191756]
[1672643012133,10.15043784,1203.3,1203.2,13.35832434]
[1672643017370,5.0,1203.3,1203.2,13.35832434]
[1672643018162,10.15043784,1203.3,1203.2,13.35832434]
[1672643019472,10.15043784,1203.3,1203.2,22.09332434]
[1672643019694,10.15043784,1203.3,1203.2,22.71762434]
[1672643020552,10.15043784,1203.3,1203.2,22.71454068]
[1672643021209,5.15043784,1203.3,1203.2,22.71454068]
[1672643022492,10.15043784,1203.3,1203.2,22.71454068]
[1672643024051,10.15043784,1203.3,1203.2,13.97954068]
[1672643025479,10.15043784,1203.3,1203.2,13.35524068]
[1672643029735,5.0,1203.3,1203.2,13.35524068]
[1672643030491,4.9978258,1203.3,1203.2,13.35524068]
[1672643030643,11.17950465,1203.3,1203.2,13.35524068]
[1672643033291,4.9978258,1203.3,1203.2,13.35524068]
[1672643033506,10.14689474,1203.3,1203.2,13.35524068]
[1672643033902,4.9978258,1203.3,1203.2,13.3388339]
[1672643034664,11.17950465,1203.3,1203.2,13.3388339]
[1672643035247,4.9978258,1203.3,1203.2,13.3388339]
[1672643036448,11.17950465,1203.3,1203.2,13.3388339]
[1672643036847,6.18167885,1203.3,1203.2,3.099]
[1672643037093,7.065,1203.3,1203.2,3.099]